[Event "Titled Tuesday Blitz October 31 Early 2023"]
[White "Skatchkov, Valery"]
[Black "Mirza, Diana"]
[WhiteFideId "24195812"]
[BlackFideId "2503999"]
[WhiteElo "2531"]
[BlackElo "1942"]
[Result "1-0"]
[Round "1"]
[TimeControl "180+1"]
[Date "2023.10.31"]
[WhiteClock "0:02:26"]
[BlackClock "0:01:26"]
[Board "195"]

1. e4 {[%clk 0:02:58]}  c5 {[%clk 0:02:57]} 2. Nf3 {[%clk 0:02:58]}  e6 {[%clk 0:02:55]} 3. c4 {[%clk 0:02:54]}  Nc6 {[%clk 0:02:55]} 4. Nc3 {[%clk 0:02:54]}  Nf6 {[%clk 0:02:55]} 5. d4 {[%clk 0:02:53]}  cxd4 {[%clk 0:02:55]} 6. Nxd4 {[%clk 0:02:54]}  Nxd4 {[%clk 0:02:54]} 7. Qxd4 {[%clk 0:02:55]}  Be7 {[%clk 0:02:55]} 8. Be3 {[%clk 0:02:54]}  d6 {[%clk 0:02:54]} 9. Be2 {[%clk 0:02:55]}  a6 {[%clk 0:02:53]} 10. O-O {[%clk 0:02:55]}  Qc7 {[%clk 0:02:54]} 11. Rac1 {[%clk 0:02:55]}  O-O {[%clk 0:02:54]} 12. Rfd1 {[%clk 0:02:55]}  Bd7 {[%clk 0:02:54]} 13. b3 {[%clk 0:02:55]}  Bc6 {[%clk 0:02:55]} 14. f3 {[%clk 0:02:53]}  Rfd8 {[%clk 0:02:53]} 15. Qb6 {[%clk 0:02:52]}  Qxb6 {[%clk 0:02:52]} 16. Bxb6 {[%clk 0:02:53]}  Rd7 {[%clk 0:02:52]} 17. b4 {[%clk 0:02:49]}  Bd8 {[%clk 0:02:29]} 18. Bf2 {[%clk 0:02:49]}  b5 {[%clk 0:02:26]} 19. cxb5 {[%clk 0:02:48]}  axb5 {[%clk 0:02:26]} 20. Nxb5 {[%clk 0:02:49]}  Rxa2 {[%clk 0:02:24]} 21. Rxc6 {[%clk 0:02:47]}  Rxe2 {[%clk 0:02:23]} 22. Rcxd6 {[%clk 0:02:47]}  Rxd6 {[%clk 0:02:15]} 23. Nxd6 {[%clk 0:02:47]}  Be7 {[%clk 0:02:12]} 24. b5 {[%clk 0:02:48]}  Nd7 {[%clk 0:02:10]} 25. Nc4 {[%clk 0:02:39]}  Nb8 {[%clk 0:02:03]} 26. Ra1 {[%clk 0:02:28]}  Bd8 {[%clk 0:01:39]} 27. Ra8 {[%clk 0:02:26]}  Bc7 {[%clk 0:01:26]} 28. b6 {[%clk 0:02:26]} 1-0


[Site "https://www.chess.com"]

[Event "Titled Tuesday Blitz October 31 Early 2023"]
[White "Shubenkova, Veronika"]
[Black "Desideri, Ricardo Maruchi"]
[WhiteFideId "44124040"]
[BlackFideId "2110440"]
[WhiteElo "2529"]
[BlackElo "1932"]
[Result "1-0"]
[Round "1"]
[TimeControl "180+1"]
[Date "2023.10.31"]
[WhiteClock "0:02:41"]
[BlackClock "0:02:03"]
[Board "197"]

1. e4 {[%clk 0:03:00]}  c5 {[%clk 0:02:58]} 2. Nc3 {[%clk 0:03:00]}  g6 {[%clk 0:02:56]} 3. g3 {[%clk 0:03:00]}  Bg7 {[%clk 0:02:56]} 4. Bg2 {[%clk 0:03:01]}  Nc6 {[%clk 0:02:56]} 5. d3 {[%clk 0:03:01]}  e6 {[%clk 0:02:55]} 6. f4 {[%clk 0:03:01]}  Nge7 {[%clk 0:02:54]} 7. Nf3 {[%clk 0:03:01]}  d5 {[%clk 0:02:53]} 8. O-O {[%clk 0:03:01]}  d4 {[%clk 0:02:52]} 9. Ne2 {[%clk 0:03:02]}  O-O {[%clk 0:02:52]} 10. Rb1 {[%clk 0:03:00]}  b5 {[%clk 0:02:46]} 11. g4 {[%clk 0:03:00]}  Bb7 {[%clk 0:02:44]} 12. h4 {[%clk 0:03:00]}  Qc7 {[%clk 0:02:37]} 13. h5 {[%clk 0:02:53]}  a5 {[%clk 0:02:25]} 14. Nh4 {[%clk 0:02:52]}  c4 {[%clk 0:02:07]} 15. f5 {[%clk 0:02:41]}  Qg3 {[%clk 0:02:03]} 1-0


[Site "https://www.chess.com"]

[Event "Titled Tuesday Blitz October 31 Early 2023"]
[White "Bazilius, Augustinas"]
[Black "Mohammadian,Mohammad"]
[WhiteFideId "12832251"]
[BlackFideId "12566055"]
[WhiteElo "2528"]
[BlackElo "1869"]
[Result "1-0"]
[Round "1"]
[TimeControl "180+1"]
[Date "2023.10.31"]
[WhiteClock "0:00:44"]
[BlackClock "0:00:00"]
[Board "199"]

1. d4 {[%clk 0:02:58]}  Nf6 {[%clk 0:02:58]} 2. c4 {[%clk 0:02:59]}  g6 {[%clk 0:02:57]} 3. Nc3 {[%clk 0:02:51]}  d5 {[%clk 0:02:56]} 4. cxd5 {[%clk 0:02:52]}  Nxd5 {[%clk 0:02:52]} 5. Bd2 {[%clk 0:02:52]}  Nxc3 {[%clk 0:02:51]} 6. Bxc3 {[%clk 0:02:53]}  Bg7 {[%clk 0:02:51]} 7. e4 {[%clk 0:02:44]}  c5 {[%clk 0:02:49]} 8. d5 {[%clk 0:02:44]}  Bxc3+ {[%clk 0:02:48]} 9. bxc3 {[%clk 0:02:45]}  Qa5 {[%clk 0:02:48]} 10. Qd2 {[%clk 0:02:43]}  Nd7 {[%clk 0:02:47]} 11. f4 {[%clk 0:02:38]}  b5 {[%clk 0:02:31]} 12. Nf3 {[%clk 0:02:36]}  Ba6 {[%clk 0:02:24]} 13. Bd3 {[%clk 0:02:30]}  c4 {[%clk 0:02:20]} 14. Bc2 {[%clk 0:02:28]}  Nc5 {[%clk 0:02:20]} 15. O-O {[%clk 0:02:09]}  O-O {[%clk 0:02:18]} 16. f5 {[%clk 0:02:04]}  Qc7 {[%clk 0:02:09]} 17. Qh6 {[%clk 0:01:59]}  Qb6 {[%clk 0:01:25]} 18. Kh1 {[%clk 0:01:45]}  Qf6 {[%clk 0:01:22]} 19. e5 {[%clk 0:01:16]}  Qg7 {[%clk 0:01:19]} 20. Qh4 {[%clk 0:01:13]}  Bc8 {[%clk 0:01:10]} 21. f6 {[%clk 0:01:11]}  exf6 {[%clk 0:01:09]} 22. exf6 {[%clk 0:01:12]}  Qh8 {[%clk 0:01:09]} 23. Ne5 {[%clk 0:01:04]}  Nd7 {[%clk 0:00:59]} 24. Nc6 {[%clk 0:01:01]}  Re8 {[%clk 0:00:47]} 25. Ne7+ {[%clk 0:01:00]}  Rxe7 {[%clk 0:00:45]} 26. fxe7 {[%clk 0:01:01]}  Bb7 {[%clk 0:00:32]} 27. Qf4 {[%clk 0:00:56]}  Qg7 {[%clk 0:00:28]} 28. Qc7 {[%clk 0:00:52]}  Bxd5 {[%clk 0:00:00]} 29. Qxd7 {[%clk 0:00:44]} 1-0


[Site "https://www.chess.com"]

[Event "Titled Tuesday Blitz October 31 Early 2023"]
[White "Naroditsky, Daniel"]
[Black "Rosen, Eric"]
[WhiteFideId "2026961"]
[BlackFideId "2032562"]
[WhiteElo "3183"]
[BlackElo "2662"]
[Result "0-1"]
[Round "2"]
[TimeControl "180+1"]
[Date "2023.10.31"]
[WhiteClock "0:00:31"]
[BlackClock "0:00:10"]
[Board "2"]

1. d4 {[%clk 0:02:58]}  d5 {[%clk 0:02:59]} 2. Nc3 {[%clk 0:02:56]}  Nf6 {[%clk 0:02:53]} 3. Bf4 {[%clk 0:02:56]}  c5 {[%clk 0:02:54]} 4. e4 {[%clk 0:02:50]}  Nxe4 {[%clk 0:02:54]} 5. Nxe4 {[%clk 0:02:50]}  dxe4 {[%clk 0:02:55]} 6. dxc5 {[%clk 0:02:51]}  Nd7 {[%clk 0:02:56]} 7. Be3 {[%clk 0:02:43]}  e5 {[%clk 0:02:55]} 8. b4 {[%clk 0:02:18]}  Be7 {[%clk 0:02:53]} 9. Bc4 {[%clk 0:02:16]}  O-O {[%clk 0:02:51]} 10. Ne2 {[%clk 0:02:15]}  Kh8 {[%clk 0:02:50]} 11. g4 {[%clk 0:02:06]}  a5 {[%clk 0:02:49]} 12. a3 {[%clk 0:02:04]}  Bg5 {[%clk 0:02:29]} 13. Bxg5 {[%clk 0:01:38]}  Qxg5 {[%clk 0:02:29]} 14. Qd2 {[%clk 0:01:37]}  e3 {[%clk 0:02:12]} 15. Qxe3 {[%clk 0:01:25]}  Qxe3 {[%clk 0:02:12]} 16. fxe3 {[%clk 0:01:24]}  axb4 {[%clk 0:02:12]} 17. O-O {[%clk 0:01:12]}  bxa3 {[%clk 0:02:06]} 18. Bxf7 {[%clk 0:01:11]}  Nxc5 {[%clk 0:02:05]} 19. h3 {[%clk 0:01:11]}  Bd7 {[%clk 0:01:59]} 20. Nc3 {[%clk 0:01:08]}  Bc6 {[%clk 0:01:57]} 21. Bd5 {[%clk 0:01:03]}  Rxf1+ {[%clk 0:01:52]} 22. Kxf1 {[%clk 0:01:04]}  Bxd5 {[%clk 0:01:23]} 23. Nxd5 {[%clk 0:01:05]}  Ne4 {[%clk 0:01:24]} 24. Ke2 {[%clk 0:01:01]}  Ra5 {[%clk 0:01:20]} 25. c4 {[%clk 0:01:00]}  Nc5 {[%clk 0:01:13]} 26. Ra2 {[%clk 0:00:57]}  h5 {[%clk 0:01:01]} 27. Kd2 {[%clk 0:00:51]}  hxg4 {[%clk 0:00:57]} 28. hxg4 {[%clk 0:00:52]}  Ne4+ {[%clk 0:00:57]} 29. Kd3 {[%clk 0:00:49]}  Nf6 {[%clk 0:00:55]} 30. Ne7 {[%clk 0:00:41]}  Nxg4 {[%clk 0:00:51]} 31. Kc3 {[%clk 0:00:42]}  g5 {[%clk 0:00:49]} 32. Kb3 {[%clk 0:00:37]}  Nxe3 {[%clk 0:00:46]} 33. Rh2+ {[%clk 0:00:36]}  Kg7 {[%clk 0:00:46]} 34. Ka2 {[%clk 0:00:37]}  Nxc4 {[%clk 0:00:41]} 35. Nf5+ {[%clk 0:00:36]}  Kf6 {[%clk 0:00:39]} 36. Ng3 {[%clk 0:00:36]}  Kg6 {[%clk 0:00:31]} 37. Rh8 {[%clk 0:00:36]}  b5 {[%clk 0:00:22]} 38. Rg8+ {[%clk 0:00:35]}  Kf6 {[%clk 0:00:20]} 39. Ne4+ {[%clk 0:00:34]}  Kf5 {[%clk 0:00:18]} 40. Nc5 {[%clk 0:00:32]}  b4 {[%clk 0:00:15]} 41. Nb3 {[%clk 0:00:32]}  Ra7 {[%clk 0:00:13]} 42. Rc8 {[%clk 0:00:33]}  Nd6 {[%clk 0:00:13]} 43. Rb8 {[%clk 0:00:34]}  g4 {[%clk 0:00:10]} 44. Rxb4 {[%clk 0:00:33]}  Ne4 {[%clk 0:00:09]} 45. Nd2 {[%clk 0:00:34]}  Nxd2 {[%clk 0:00:10]} 46. Rb8 {[%clk 0:00:32]}  Ne4 {[%clk 0:00:10]} 47. Rf8+ {[%clk 0:00:32]}  Nf6 {[%clk 0:00:10]} 48. Rf7 {[%clk 0:00:31]}  Rxf7 {[%clk 0:00:10]} 0-1


[Site "https://www.chess.com"]

[Event "Titled Tuesday Blitz October 31 Early 2023"]
[White "Bao, Qilin"]
[Black "So, Wesley"]
[WhiteFideId "8605750"]
[BlackFideId "5202213"]
[WhiteElo "2659"]
[BlackElo "3094"]
[Result "0-1"]
[Round "2"]
[TimeControl "180+1"]
[Date "2023.10.31"]
[WhiteClock "0:00:11"]
[BlackClock "0:01:07"]
[Board "5"]

1. Nf3 {[%clk 0:02:59]}  c5 {[%clk 0:02:59]} 2. c4 {[%clk 0:02:58]}  Nf6 {[%clk 0:02:58]} 3. g3 {[%clk 0:02:58]}  b6 {[%clk 0:02:57]} 4. Bg2 {[%clk 0:02:58]}  Bb7 {[%clk 0:02:57]} 5. O-O {[%clk 0:02:58]}  e6 {[%clk 0:02:58]} 6. b3 {[%clk 0:02:55]}  Be7 {[%clk 0:02:56]} 7. Bb2 {[%clk 0:02:55]}  O-O {[%clk 0:02:57]} 8. Nc3 {[%clk 0:02:55]}  a6 {[%clk 0:02:49]} 9. Rc1 {[%clk 0:02:50]}  Re8 {[%clk 0:02:47]} 10. d4 {[%clk 0:02:49]}  cxd4 {[%clk 0:02:47]} 11. Nxd4 {[%clk 0:02:50]}  Bxg2 {[%clk 0:02:47]} 12. Kxg2 {[%clk 0:02:51]}  Qc8 {[%clk 0:02:43]} 13. e3 {[%clk 0:02:51]}  Nc6 {[%clk 0:02:39]} 14. Nxc6 {[%clk 0:02:50]}  Qxc6+ {[%clk 0:02:39]} 15. Qf3 {[%clk 0:02:51]}  Qxf3+ {[%clk 0:02:32]} 16. Kxf3 {[%clk 0:02:50]}  b5 {[%clk 0:02:33]} 17. cxb5 {[%clk 0:02:19]}  axb5 {[%clk 0:02:34]} 18. Nxb5 {[%clk 0:02:19]}  Rxa2 {[%clk 0:02:32]} 19. Bxf6 {[%clk 0:02:20]}  gxf6 {[%clk 0:02:24]} 20. Rc7 {[%clk 0:02:18]}  d5 {[%clk 0:02:17]} 21. Rfc1 {[%clk 0:02:10]}  Bf8 {[%clk 0:01:53]} 22. Rb7 {[%clk 0:01:51]}  Rb2 {[%clk 0:01:52]} 23. Nd4 {[%clk 0:01:49]}  Bd6 {[%clk 0:01:50]} 24. Rc6 {[%clk 0:01:42]}  Be5 {[%clk 0:01:49]} 25. b4 {[%clk 0:01:33]}  Ra8 {[%clk 0:01:30]} 26. h4 {[%clk 0:01:34]}  h5 {[%clk 0:01:25]} 27. g4 {[%clk 0:00:41]}  Raa2 {[%clk 0:01:15]} 28. Rc8+ {[%clk 0:00:29]}  Kh7 {[%clk 0:01:15]} 29. Nc2 {[%clk 0:00:16]}  Rxc2 {[%clk 0:01:14]} 30. Rxf7+ {[%clk 0:00:15]}  Kg6 {[%clk 0:01:14]} 31. Rxc2 {[%clk 0:00:16]}  Rxc2 {[%clk 0:01:13]} 32. Re7 {[%clk 0:00:16]}  hxg4+ {[%clk 0:01:13]} 33. Kxg4 {[%clk 0:00:17]}  f5+ {[%clk 0:01:12]} 34. Kf3 {[%clk 0:00:16]}  Kf6 {[%clk 0:01:13]} 35. Rb7 {[%clk 0:00:16]}  Rb2 {[%clk 0:01:07]} 36. b5 {[%clk 0:00:13]}  d4 {[%clk 0:01:06]} 37. exd4 {[%clk 0:00:11]}  Bxd4 {[%clk 0:01:07]} 0-1


[Site "https://www.chess.com"]

[Event "Titled Tuesday Blitz October 31 Early 2023"]
[White "Sharapov, Evgeny"]
[Black "Makarian, Rudik"]
[WhiteFideId "14103133"]
[BlackFideId "44105681"]
[WhiteElo "2646"]
[BlackElo "3052"]
[Result "1-0"]
[Round "2"]
[TimeControl "180+1"]
[Date "2023.10.31"]
[WhiteClock "0:00:50"]
[BlackClock "0:00:20"]
[Board "7"]

1. e4 {[%clk 0:03:00]}  c5 {[%clk 0:03:00]} 2. Nf3 {[%clk 0:02:59]}  Nc6 {[%clk 0:03:01]} 3. d4 {[%clk 0:02:59]}  cxd4 {[%clk 0:03:01]} 4. Nxd4 {[%clk 0:02:59]}  Nf6 {[%clk 0:03:02]} 5. Nc3 {[%clk 0:02:58]}  d6 {[%clk 0:03:02]} 6. g3 {[%clk 0:02:57]}  Bg4 {[%clk 0:02:58]} 7. f3 {[%clk 0:02:55]}  Bd7 {[%clk 0:02:57]} 8. Be3 {[%clk 0:02:54]}  a6 {[%clk 0:02:48]} 9. g4 {[%clk 0:02:54]}  h6 {[%clk 0:02:43]} 10. Qd2 {[%clk 0:02:54]}  b5 {[%clk 0:02:42]} 11. O-O-O {[%clk 0:02:53]}  b4 {[%clk 0:02:42]} 12. Nd5 {[%clk 0:02:53]}  Nxd4 {[%clk 0:02:07]} 13. Nxf6+ {[%clk 0:02:47]}  gxf6 {[%clk 0:02:08]} 14. Bxd4 {[%clk 0:02:47]}  a5 {[%clk 0:02:08]} 15. Kb1 {[%clk 0:02:47]}  Qc7 {[%clk 0:02:08]} 16. h4 {[%clk 0:02:40]}  Rb8 {[%clk 0:02:05]} 17. Bd3 {[%clk 0:02:39]}  a4 {[%clk 0:02:05]} 18. g5 {[%clk 0:02:39]}  e5 {[%clk 0:02:01]} 19. Be3 {[%clk 0:02:34]}  a3 {[%clk 0:01:54]} 20. b3 {[%clk 0:02:33]}  fxg5 {[%clk 0:01:47]} 21. hxg5 {[%clk 0:02:33]}  h5 {[%clk 0:01:47]} 22. Bc4 {[%clk 0:02:30]}  Be6 {[%clk 0:01:41]} 23. Bxe6 {[%clk 0:02:25]}  fxe6 {[%clk 0:01:42]} 24. f4 {[%clk 0:02:14]}  exf4 {[%clk 0:01:31]} 25. Bxf4 {[%clk 0:02:14]}  Rc8 {[%clk 0:01:31]} 26. Rh2 {[%clk 0:02:06]}  Qc3 {[%clk 0:01:02]} 27. Qxc3 {[%clk 0:02:04]}  bxc3 {[%clk 0:01:03]} 28. Bxd6 {[%clk 0:01:58]}  Bxd6 {[%clk 0:00:53]} 29. Rxd6 {[%clk 0:01:57]}  Ke7 {[%clk 0:00:54]} 30. Rd1 {[%clk 0:01:48]}  Rcd8 {[%clk 0:00:46]} 31. Rxd8 {[%clk 0:01:44]}  Rxd8 {[%clk 0:00:47]} 32. Kc1 {[%clk 0:01:45]}  Rf8 {[%clk 0:00:47]} 33. Kd1 {[%clk 0:01:38]}  Rd8+ {[%clk 0:00:28]} 34. Ke1 {[%clk 0:01:35]}  Rd4 {[%clk 0:00:26]} 35. Rxh5 {[%clk 0:01:01]}  Rxe4+ {[%clk 0:00:26]} 36. Kf2 {[%clk 0:00:57]}  Rd4 {[%clk 0:00:26]} 37. Rh2 {[%clk 0:00:54]}  Rd2+ {[%clk 0:00:22]} 38. Kg3 {[%clk 0:00:54]}  Kf7 {[%clk 0:00:16]} 39. Rf2+ {[%clk 0:00:52]}  Kg6 {[%clk 0:00:16]} 40. Kf3 {[%clk 0:00:52]}  Kxg5 {[%clk 0:00:16]} 41. Rxd2 {[%clk 0:00:52]}  cxd2 {[%clk 0:00:15]} 42. Ke2 {[%clk 0:00:52]}  Kf4 {[%clk 0:00:15]} 43. Kxd2 {[%clk 0:00:53]}  Kf3 {[%clk 0:00:15]} 44. Ke1 {[%clk 0:00:50]}  Ke3 {[%clk 0:00:16]} 45. c4 {[%clk 0:00:49]}  Kd4 {[%clk 0:00:16]} 46. Ke2 {[%clk 0:00:50]}  e5 {[%clk 0:00:16]} 47. Kd2 {[%clk 0:00:50]}  e4 {[%clk 0:00:17]} 48. Ke2 {[%clk 0:00:50]}  Kc3 {[%clk 0:00:17]} 49. c5 {[%clk 0:00:50]}  Kb2 {[%clk 0:00:17]} 50. c6 {[%clk 0:00:51]}  Kxa2 {[%clk 0:00:18]} 51. c7 {[%clk 0:00:51]}  Kxb3 {[%clk 0:00:18]} 52. c8=Q {[%clk 0:00:51]}  a2 {[%clk 0:00:18]} 53. Qh8 {[%clk 0:00:51]}  e3 {[%clk 0:00:18]} 54. Qa1 {[%clk 0:00:50]}  Ka3 {[%clk 0:00:19]} 55. Kxe3 {[%clk 0:00:50]}  Kb3 {[%clk 0:00:20]} 56. Kd3 {[%clk 0:00:50]}  Ka3 {[%clk 0:00:20]} 57. Kc4 {[%clk 0:00:50]} 1-0


[Site "https://www.chess.com"]

[Event "Titled Tuesday Blitz October 31 Early 2023"]
[White "Keymer, Vincent"]
[Black "Volkov, Maksim"]
[WhiteFideId "12940690"]
[BlackFideId "54123070"]
[WhiteElo "3052"]
[BlackElo "2645"]
[Result "1-0"]
[Round "2"]
[TimeControl "180+1"]
[Date "2023.10.31"]
[WhiteClock "0:02:22"]
[BlackClock "0:01:19"]
[Board "8"]

1. a3 {[%clk 0:03:00]}  d5 {[%clk 0:02:58]} 2. Nf3 {[%clk 0:03:00]}  Nf6 {[%clk 0:02:56]} 3. e3 {[%clk 0:03:00]}  Bf5 {[%clk 0:02:45]} 4. c4 {[%clk 0:02:59]}  e6 {[%clk 0:02:44]} 5. Qb3 {[%clk 0:02:57]}  Qc8 {[%clk 0:02:44]} 6. Nc3 {[%clk 0:02:53]}  c6 {[%clk 0:02:43]} 7. Nh4 {[%clk 0:02:53]}  Bg4 {[%clk 0:02:43]} 8. h3 {[%clk 0:02:53]}  Bh5 {[%clk 0:02:43]} 9. g4 {[%clk 0:02:52]}  Bg6 {[%clk 0:02:44]} 10. d4 {[%clk 0:02:41]}  Nbd7 {[%clk 0:02:41]} 11. g5 {[%clk 0:02:38]}  Ng8 {[%clk 0:02:34]} 12. Nxg6 {[%clk 0:02:38]}  hxg6 {[%clk 0:02:34]} 13. e4 {[%clk 0:02:38]}  dxe4 {[%clk 0:02:09]} 14. Nxe4 {[%clk 0:02:39]}  Rh4 {[%clk 0:02:04]} 15. Bg2 {[%clk 0:02:34]}  Qc7 {[%clk 0:01:55]} 16. Be3 {[%clk 0:02:33]}  e5 {[%clk 0:01:51]} 17. O-O-O {[%clk 0:02:31]}  exd4 {[%clk 0:01:41]} 18. Rxd4 {[%clk 0:02:30]}  Rh8 {[%clk 0:01:25]} 19. Rhd1 {[%clk 0:02:29]}  O-O-O {[%clk 0:01:25]} 20. h4 {[%clk 0:02:22]}  Ne7 {[%clk 0:01:24]} 21. Nd6+ {[%clk 0:02:21]}  Kb8 {[%clk 0:01:24]} 22. Nxf7 {[%clk 0:02:21]}  Nf5 {[%clk 0:01:19]} 23. Bf4 {[%clk 0:02:22]} 1-0


[Site "https://www.chess.com"]

[Event "Titled Tuesday Blitz October 31 Early 2023"]
[White "Skliarov, Viktor"]
[Black "Terry, Renato"]
[WhiteFideId "14106736"]
[BlackFideId "3803457"]
[WhiteElo "2638"]
[BlackElo "3013"]
[Result "0-1"]
[Round "2"]
[TimeControl "180+1"]
[Date "2023.10.31"]
[WhiteClock "0:00:02"]
[BlackClock "0:00:17"]
[Board "9"]

1. e4 {[%clk 0:03:00]}  e6 {[%clk 0:02:59]} 2. d4 {[%clk 0:03:01]}  d5 {[%clk 0:02:59]} 3. e5 {[%clk 0:03:01]}  c5 {[%clk 0:02:59]} 4. c3 {[%clk 0:03:02]}  Qb6 {[%clk 0:03:00]} 5. Nf3 {[%clk 0:03:02]}  Bd7 {[%clk 0:03:00]} 6. Be2 {[%clk 0:02:50]}  cxd4 {[%clk 0:03:00]} 7. cxd4 {[%clk 0:02:49]}  Bb5 {[%clk 0:03:00]} 8. Nc3 {[%clk 0:02:49]}  Bxe2 {[%clk 0:03:00]} 9. Qxe2 {[%clk 0:02:50]}  Nc6 {[%clk 0:03:00]} 10. Be3 {[%clk 0:02:48]}  Nge7 {[%clk 0:03:00]} 11. O-O {[%clk 0:02:47]}  Nf5 {[%clk 0:03:01]} 12. Rfd1 {[%clk 0:02:38]}  Be7 {[%clk 0:03:00]} 13. Rac1 {[%clk 0:02:34]}  O-O {[%clk 0:02:51]} 14. g4 {[%clk 0:02:27]}  Nxe3 {[%clk 0:02:51]} 15. fxe3 {[%clk 0:02:26]}  f6 {[%clk 0:02:45]} 16. Na4 {[%clk 0:02:11]}  Qd8 {[%clk 0:02:33]} 17. e4 {[%clk 0:01:43]}  dxe4 {[%clk 0:02:16]} 18. Qxe4 {[%clk 0:01:42]}  fxe5 {[%clk 0:02:17]} 19. Nxe5 {[%clk 0:01:20]}  Bg5 {[%clk 0:02:07]} 20. Nxc6 {[%clk 0:01:13]}  bxc6 {[%clk 0:02:03]} 21. Rxc6 {[%clk 0:01:13]}  Kh8 {[%clk 0:01:59]} 22. Rxe6 {[%clk 0:01:11]}  Qa5 {[%clk 0:01:45]} 23. Nc3 {[%clk 0:01:09]}  Bh4 {[%clk 0:01:40]} 24. Re5 {[%clk 0:01:00]}  Qb6 {[%clk 0:01:26]} 25. Rh5 {[%clk 0:00:57]}  Bf2+ {[%clk 0:01:26]} 26. Kg2 {[%clk 0:00:57]}  h6 {[%clk 0:01:24]} 27. Rd2 {[%clk 0:00:51]}  Bh4 {[%clk 0:01:06]} 28. Nd5 {[%clk 0:00:34]}  Qa6 {[%clk 0:00:57]} 29. Nf4 {[%clk 0:00:22]}  Rae8 {[%clk 0:00:44]} 30. Ng6+ {[%clk 0:00:22]}  Kg8 {[%clk 0:00:44]} 31. Qd5+ {[%clk 0:00:22]}  Rf7 {[%clk 0:00:45]} 32. Rf5 {[%clk 0:00:22]}  Qxg6 {[%clk 0:00:44]} 33. Rxf7 {[%clk 0:00:11]}  Qxf7 {[%clk 0:00:33]} 34. Qxf7+ {[%clk 0:00:12]}  Kxf7 {[%clk 0:00:33]} 35. Kf3 {[%clk 0:00:10]}  Bf6 {[%clk 0:00:30]} 36. b3 {[%clk 0:00:09]}  Re1 {[%clk 0:00:28]} 37. h3 {[%clk 0:00:07]}  Ke6 {[%clk 0:00:28]} 38. Rc2 {[%clk 0:00:05]}  Kd6 {[%clk 0:00:26]} 39. Rc4 {[%clk 0:00:05]}  Rd1 {[%clk 0:00:23]} 40. Ke4 {[%clk 0:00:05]}  Re1+ {[%clk 0:00:24]} 41. Kd3 {[%clk 0:00:05]}  Bd8 {[%clk 0:00:18]} 42. Ra4 {[%clk 0:00:05]}  Bb6 {[%clk 0:00:18]} 43. b4 {[%clk 0:00:05]}  Rh1 {[%clk 0:00:18]} 44. b5 {[%clk 0:00:05]}  Rxh3+ {[%clk 0:00:18]} 45. Kc4 {[%clk 0:00:02]}  Rh4 {[%clk 0:00:17]} 0-1


[Site "https://www.chess.com"]

[Event "Titled Tuesday Blitz October 31 Early 2023"]
[White "Pranav, V"]
[Black "Matinian, Nikita"]
[WhiteFideId "25060783"]
[BlackFideId "24129100"]
[WhiteElo "3013"]
[BlackElo "2636"]
[Result "1-0"]
[Round "2"]
[TimeControl "180+1"]
[Date "2023.10.31"]
[WhiteClock "0:00:30"]
[BlackClock "0:00:00"]
[Board "10"]

1. e4 {[%clk 0:03:00]}  c5 {[%clk 0:02:59]} 2. Nf3 {[%clk 0:03:00]}  d6 {[%clk 0:03:00]} 3. d4 {[%clk 0:03:01]}  cxd4 {[%clk 0:03:00]} 4. Nxd4 {[%clk 0:03:02]}  Nf6 {[%clk 0:03:01]} 5. Nc3 {[%clk 0:03:02]}  g6 {[%clk 0:03:01]} 6. Be3 {[%clk 0:03:00]}  Nc6 {[%clk 0:03:01]} 7. f3 {[%clk 0:02:57]}  h5 {[%clk 0:03:01]} 8. Bc4 {[%clk 0:02:50]}  Bd7 {[%clk 0:02:55]} 9. Bb3 {[%clk 0:02:49]}  Ne5 {[%clk 0:02:44]} 10. Qd2 {[%clk 0:02:45]}  a5 {[%clk 0:02:39]} 11. a4 {[%clk 0:02:41]}  Bg7 {[%clk 0:02:33]} 12. O-O {[%clk 0:02:39]}  Rc8 {[%clk 0:02:26]} 13. Rae1 {[%clk 0:02:27]}  O-O {[%clk 0:02:22]} 14. Bh6 {[%clk 0:02:21]}  Nc4 {[%clk 0:01:50]} 15. Bxc4 {[%clk 0:02:16]}  Rxc4 {[%clk 0:01:43]} 16. Bxg7 {[%clk 0:02:15]}  Kxg7 {[%clk 0:01:43]} 17. Kh1 {[%clk 0:01:53]}  Qb6 {[%clk 0:01:32]} 18. Ndb5 {[%clk 0:01:30]}  Bxb5 {[%clk 0:01:27]} 19. axb5 {[%clk 0:01:31]}  Rfc8 {[%clk 0:01:26]} 20. f4 {[%clk 0:01:28]}  Qd4 {[%clk 0:01:17]} 21. Qe2 {[%clk 0:01:28]}  Rb4 {[%clk 0:01:02]} 22. e5 {[%clk 0:01:16]}  Ng4 {[%clk 0:01:02]} 23. Nd1 {[%clk 0:01:13]}  Qc4 {[%clk 0:00:49]} 24. Qf3 {[%clk 0:01:08]}  Rxb5 {[%clk 0:00:42]} 25. h3 {[%clk 0:01:06]}  Nh6 {[%clk 0:00:40]} 26. Ne3 {[%clk 0:01:00]}  Qc6 {[%clk 0:00:40]} 27. Qg3 {[%clk 0:01:00]}  dxe5 {[%clk 0:00:32]} 28. f5 {[%clk 0:00:59]}  e4 {[%clk 0:00:16]} 29. Re2 {[%clk 0:00:52]}  Qd6 {[%clk 0:00:13]} 30. f6+ {[%clk 0:00:36]}  Kh7 {[%clk 0:00:13]} 31. Qh4 {[%clk 0:00:36]}  exf6 {[%clk 0:00:10]} 32. Rxf6 {[%clk 0:00:37]}  Qe7 {[%clk 0:00:09]} 33. Ref2 {[%clk 0:00:36]}  Rc7 {[%clk 0:00:05]} 34. b3 {[%clk 0:00:33]}  Re5 {[%clk 0:00:00]} 35. Qf4 {[%clk 0:00:30]} 1-0


[Site "https://www.chess.com"]